[Event "Titled Tuesday Blitz May 4 2021"]
[White "Seul, Georg"]
[Black "Velickovic, Zoran"]
[WhiteFideId "4601653"]
[BlackFideId "14601184"]
[WhiteElo "2332"]
[BlackElo "2336"]
[Result "1-0"]
[Round "07"]
[TimeControl "180+1"]
[Date "2021.05.04"]
[WhiteClock "0:00:24"]
[BlackClock "0:00:01"]

1. e4 {[%clk 0:03:00]}  c5 {[%clk 0:02:58]} 2. Nf3 {[%clk 0:03:00]}  g6 {[%clk 0:02:59]} 3. Bc4 {[%clk 0:02:59]}  Bg7 {[%clk 0:02:59]} 4. c3 {[%clk 0:02:58]}  e6 {[%clk 0:02:59]} 5. d4 {[%clk 0:02:58]}  cxd4 {[%clk 0:02:58]} 6. cxd4 {[%clk 0:02:58]}  d5 {[%clk 0:02:59]} 7. exd5 {[%clk 0:02:57]}  exd5 {[%clk 0:02:59]} 8. Bb5+ {[%clk 0:02:57]}  Nc6 {[%clk 0:02:59]} 9. O-O {[%clk 0:02:56]}  Ne7 {[%clk 0:02:58]} 10. Nc3 {[%clk 0:02:55]}  O-O {[%clk 0:02:57]} 11. h3 {[%clk 0:02:54]}  h6 {[%clk 0:02:57]} 12. Re1 {[%clk 0:02:53]}  a6 {[%clk 0:02:56]} 13. Ba4 {[%clk 0:02:48]}  Nf5 {[%clk 0:02:52]} 14. Bxc6 {[%clk 0:02:47]}  bxc6 {[%clk 0:02:52]} 15. Na4 {[%clk 0:02:43]}  Qf6 {[%clk 0:02:39]} 16. Be3 {[%clk 0:02:33]}  Re8 {[%clk 0:02:24]} 17. Qd2 {[%clk 0:02:19]}  Nxe3 {[%clk 0:02:10]} 18. Rxe3 {[%clk 0:02:18]}  Rxe3 {[%clk 0:02:02]} 19. Qxe3 {[%clk 0:02:18]}  Bf5 {[%clk 0:01:59]} 20. Rc1 {[%clk 0:02:09]}  Qd6 {[%clk 0:01:36]} 21. Nc5 {[%clk 0:01:54]}  a5 {[%clk 0:01:34]} 22. b3 {[%clk 0:01:54]}  g5 {[%clk 0:01:12]} 23. Re1 {[%clk 0:01:53]}  Bf6 {[%clk 0:01:06]} 24. Qd2 {[%clk 0:01:49]}  Kg7 {[%clk 0:01:02]} 25. Ne5 {[%clk 0:01:49]}  Re8 {[%clk 0:00:56]} 26. Qc3 {[%clk 0:01:37]}  h5 {[%clk 0:00:45]} 27. Qf3 {[%clk 0:01:20]}  Bg6 {[%clk 0:00:38]} 28. Ncd7 {[%clk 0:01:17]}  Bxe5 {[%clk 0:00:29]} 29. Nxe5 {[%clk 0:01:08]}  f6 {[%clk 0:00:27]} 30. Nd3 {[%clk 0:01:02]}  Rxe1+ {[%clk 0:00:26]} 31. Nxe1 {[%clk 0:01:02]}  c5 {[%clk 0:00:26]} 32. Qc3 {[%clk 0:00:51]}  Qe6 {[%clk 0:00:22]} 33. Nf3 {[%clk 0:00:45]}  cxd4 {[%clk 0:00:21]} 34. Nxd4 {[%clk 0:00:44]}  Qe4 {[%clk 0:00:18]} 35. a4 {[%clk 0:00:38]}  Kh6 {[%clk 0:00:17]} 36. Qe3 {[%clk 0:00:37]}  Qb1+ {[%clk 0:00:13]} 37. Kh2 {[%clk 0:00:38]}  h4 {[%clk 0:00:11]} 38. Ne6 {[%clk 0:00:34]}  Qe4 {[%clk 0:00:10]} 39. Qxe4 {[%clk 0:00:32]}  Bxe4 {[%clk 0:00:10]} 40. Nd4 {[%clk 0:00:32]}  Kg6 {[%clk 0:00:09]} 41. f3 {[%clk 0:00:31]}  Bd3 {[%clk 0:00:09]} 42. Kg1 {[%clk 0:00:32]}  f5 {[%clk 0:00:10]} 43. Kf2 {[%clk 0:00:31]}  Kf6 {[%clk 0:00:10]} 44. Nc6 {[%clk 0:00:31]}  Bc2 {[%clk 0:00:07]} 45. Nxa5 {[%clk 0:00:30]}  Ke5 {[%clk 0:00:07]} 46. Ke3 {[%clk 0:00:28]}  d4+ {[%clk 0:00:06]} 47. Kd2 {[%clk 0:00:28]}  d3 {[%clk 0:00:04]} 48. Nc4+ {[%clk 0:00:28]}  Kf4 {[%clk 0:00:04]} 49. Ne3 {[%clk 0:00:26]}  Bxb3 {[%clk 0:00:03]} 50. a5 {[%clk 0:00:26]}  Ba4 {[%clk 0:00:01]} 51. a6 {[%clk 0:00:26]}  Bc6 {[%clk 0:00:01]} 52. Kxd3 {[%clk 0:00:25]}  g4 {[%clk 0:00:01]} 53. hxg4 {[%clk 0:00:25]}  fxg4 {[%clk 0:00:01]} 54. Nxg4 {[%clk 0:00:24]}  h3 {[%clk 0:00:02]} 55. gxh3 {[%clk 0:00:25]}  Kxf3 {[%clk 0:00:02]} 56. Ne5+ {[%clk 0:00:24]}  Kg3 {[%clk 0:00:02]} 57. Nxc6 {[%clk 0:00:24]}  Kxh3 {[%clk 0:00:01]} 58. a7 {[%clk 0:00:24]} 1-0


[Site "https://www.chess.com"]

[Event "Titled Tuesday Blitz May 4 2021"]
[White "Sevian, Samuel"]
[Black "Bommini, Mounika Akshaya"]
[WhiteFideId "2040506"]
[BlackFideId "25019872"]
[WhiteElo "2930"]
[BlackElo "1610"]
[Result "1-0"]
[Round "07"]
[TimeControl "180+1"]
[Date "2021.05.04"]
[WhiteClock "0:01:55"]
[BlackClock "0:00:06"]

1. e4 {[%clk 0:03:00]}  e5 {[%clk 0:02:58]} 2. Nf3 {[%clk 0:03:00]}  Nc6 {[%clk 0:02:58]} 3. Bc4 {[%clk 0:03:01]}  Nf6 {[%clk 0:02:57]} 4. Ng5 {[%clk 0:03:00]}  d5 {[%clk 0:02:56]} 5. exd5 {[%clk 0:03:01]}  Na5 {[%clk 0:02:57]} 6. Bb5+ {[%clk 0:03:01]}  c6 {[%clk 0:02:57]} 7. dxc6 {[%clk 0:03:02]}  bxc6 {[%clk 0:02:57]} 8. Be2 {[%clk 0:03:02]}  h6 {[%clk 0:02:54]} 9. Nf3 {[%clk 0:03:02]}  e4 {[%clk 0:02:51]} 10. Ne5 {[%clk 0:03:02]}  Bd6 {[%clk 0:02:47]} 11. d4 {[%clk 0:03:01]}  exd3 {[%clk 0:02:31]} 12. Nxd3 {[%clk 0:03:01]}  O-O {[%clk 0:02:30]} 13. O-O {[%clk 0:02:53]}  Nd5 {[%clk 0:02:23]} 14. Nd2 {[%clk 0:02:47]}  f5 {[%clk 0:02:11]} 15. c4 {[%clk 0:02:45]}  Nf6 {[%clk 0:02:07]} 16. b3 {[%clk 0:02:43]}  Ne4 {[%clk 0:02:02]} 17. Bb2 {[%clk 0:02:42]}  Nb7 {[%clk 0:01:55]} 18. Rc1 {[%clk 0:02:24]}  Qh4 {[%clk 0:01:52]} 19. g3 {[%clk 0:02:10]}  Qh3 {[%clk 0:01:45]} 20. Bf3 {[%clk 0:02:09]}  Ng5 {[%clk 0:00:59]} 21. Bg2 {[%clk 0:02:04]}  Qg4 {[%clk 0:00:55]} 22. Qxg4 {[%clk 0:02:04]}  fxg4 {[%clk 0:00:54]} 23. c5 {[%clk 0:02:05]}  Bc7 {[%clk 0:00:52]} 24. Bxc6 {[%clk 0:02:05]}  Rb8 {[%clk 0:00:36]} 25. Ne4 {[%clk 0:02:03]}  Nh3+ {[%clk 0:00:28]} 26. Kg2 {[%clk 0:02:03]}  Nd8 {[%clk 0:00:22]} 27. Bd5+ {[%clk 0:02:02]}  Kh8 {[%clk 0:00:22]} 28. Ne5 {[%clk 0:02:01]}  Bf5 {[%clk 0:00:19]} 29. Nd6 {[%clk 0:01:58]}  Bh7 {[%clk 0:00:14]} 30. Rce1 {[%clk 0:01:57]}  g5 {[%clk 0:00:06]} 31. Ng6# {[%clk 0:01:55]} 1-0


[Site "https://www.chess.com"]

[Event "Titled Tuesday Blitz May 4 2021"]
[White "Shahinyan, David"]
[Black "Tomb, Maroun"]
[WhiteFideId "13304380"]
[BlackFideId "5300398"]
[WhiteElo "2372"]
[BlackElo "2570"]
[Result "1-0"]
[Round "07"]
[TimeControl "180+1"]
[Date "2021.05.04"]
[WhiteClock "0:00:37"]
[BlackClock "0:00:02"]

1. e4 {[%clk 0:03:00]}  d6 {[%clk 0:02:57]} 2. Nc3 {[%clk 0:03:00]}  Nf6 {[%clk 0:02:57]} 3. f4 {[%clk 0:03:00]}  d5 {[%clk 0:02:56]} 4. e5 {[%clk 0:02:56]}  d4 {[%clk 0:02:56]} 5. Nce2 {[%clk 0:02:50]}  Nd5 {[%clk 0:02:49]} 6. Nxd4 {[%clk 0:02:36]}  Nxf4 {[%clk 0:02:49]} 7. Nb3 {[%clk 0:02:34]}  g5 {[%clk 0:02:41]} 8. d4 {[%clk 0:02:31]}  c6 {[%clk 0:02:00]} 9. g3 {[%clk 0:02:16]}  Ne6 {[%clk 0:01:48]} 10. Nf3 {[%clk 0:02:12]}  h6 {[%clk 0:01:44]} 11. Bg2 {[%clk 0:02:09]}  Bg7 {[%clk 0:01:43]} 12. O-O {[%clk 0:02:08]}  Na6 {[%clk 0:01:43]} 13. c3 {[%clk 0:02:01]}  Nac7 {[%clk 0:01:43]} 14. h4 {[%clk 0:02:00]}  g4 {[%clk 0:01:42]} 15. Nfd2 {[%clk 0:01:58]}  h5 {[%clk 0:01:42]} 16. Ne4 {[%clk 0:01:58]}  b6 {[%clk 0:01:31]} 17. Bg5 {[%clk 0:01:40]}  Ba6 {[%clk 0:01:23]} 18. Nd6+ {[%clk 0:01:39]}  Kd7 {[%clk 0:01:07]} 19. Nxf7 {[%clk 0:01:36]}  Bxf1 {[%clk 0:00:57]} 20. Nxd8 {[%clk 0:01:29]}  Bxg2 {[%clk 0:00:57]} 21. Nxe6 {[%clk 0:01:20]}  Bf3 {[%clk 0:00:56]} 22. Nec5+ {[%clk 0:01:05]}  bxc5 {[%clk 0:00:49]} 23. Nxc5+ {[%clk 0:01:06]}  Ke8 {[%clk 0:00:46]} 24. Qd3 {[%clk 0:01:05]}  Kf8 {[%clk 0:00:19]} 25. Qg6 {[%clk 0:00:58]}  Kg8 {[%clk 0:00:19]} 26. e6 {[%clk 0:00:36]}  Rf8 {[%clk 0:00:18]} 27. Nd7 {[%clk 0:00:37]}  Rf6 {[%clk 0:00:02]} 1-0


[Site "https://www.chess.com"]

[Event "Titled Tuesday Blitz May 4 2021"]
[White "Shkapenko, Pavel"]
[Black "Sharapov, Evgeny"]
[WhiteFideId "4151933"]
[BlackFideId "14103133"]
[WhiteElo "2386"]
[BlackElo "2367"]
[Result "0-1"]
[Round "07"]
[TimeControl "180+1"]
[Date "2021.05.04"]
[WhiteClock "0:00:01"]
[BlackClock "0:00:54"]

1. e4 {[%clk 0:03:00]}  c5 {[%clk 0:02:59]} 2. c3 {[%clk 0:02:57]}  Nf6 {[%clk 0:02:59]} 3. e5 {[%clk 0:02:58]}  Nd5 {[%clk 0:02:59]} 4. d4 {[%clk 0:02:58]}  cxd4 {[%clk 0:02:58]} 5. cxd4 {[%clk 0:02:59]}  Nc6 {[%clk 0:02:58]} 6. Nc3 {[%clk 0:02:59]}  Nxc3 {[%clk 0:02:57]} 7. bxc3 {[%clk 0:03:00]}  d5 {[%clk 0:02:57]} 8. Bd3 {[%clk 0:02:59]}  g6 {[%clk 0:02:52]} 9. h4 {[%clk 0:02:58]}  h5 {[%clk 0:02:51]} 10. Ne2 {[%clk 0:02:57]}  Bg7 {[%clk 0:02:51]} 11. Nf4 {[%clk 0:02:56]}  O-O {[%clk 0:02:15]} 12. Nxh5 {[%clk 0:02:39]}  gxh5 {[%clk 0:02:12]} 13. Qxh5 {[%clk 0:02:37]}  f5 {[%clk 0:02:11]} 14. Rh3 {[%clk 0:01:32]}  Qe8 {[%clk 0:02:04]} 15. Qg5 {[%clk 0:01:31]}  Qf7 {[%clk 0:02:00]} 16. Rg3 {[%clk 0:01:27]}  Kh7 {[%clk 0:01:59]} 17. h5 {[%clk 0:01:08]}  Be6 {[%clk 0:01:56]} 18. Bd2 {[%clk 0:00:58]}  Rg8 {[%clk 0:01:55]} 19. Qg6+ {[%clk 0:00:56]}  Kh8 {[%clk 0:01:52]} 20. Bf4 {[%clk 0:00:27]}  Qxg6 {[%clk 0:01:42]} 21. Rxg6 {[%clk 0:00:21]}  Bf7 {[%clk 0:01:41]} 22. Rg3 {[%clk 0:00:17]}  e6 {[%clk 0:01:41]} 23. Kd2 {[%clk 0:00:16]}  Bf8 {[%clk 0:01:39]} 24. Bg5 {[%clk 0:00:15]}  Be7 {[%clk 0:01:38]} 25. f4 {[%clk 0:00:13]}  Rg7 {[%clk 0:01:28]} 26. Rh1 {[%clk 0:00:02]}  Rag8 {[%clk 0:01:26]} 27. h6 {[%clk 0:00:02]}  Rg6 {[%clk 0:01:24]} 28. Rh5 {[%clk 0:00:02]}  Bxg5 {[%clk 0:01:16]} 29. fxg5 {[%clk 0:00:02]}  Kh7 {[%clk 0:01:10]} 30. Ke3 {[%clk 0:00:03]}  Ne7 {[%clk 0:00:58]} 31. Kf4 {[%clk 0:00:03]}  Rc8 {[%clk 0:00:56]} 32. Bb1 {[%clk 0:00:01]}  Rgg8 {[%clk 0:00:54]} 0-1


[Site "https://www.chess.com"]

[Event "Titled Tuesday Blitz May 4 2021"]
[White "Shtyka, Sergey"]
[Black "volunteers1998"]
[WhiteFideId "4138465"]
[WhiteElo "2102"]
[BlackElo "2232"]
[Result "0-1"]
[Round "07"]
[TimeControl "180+1"]
[Date "2021.05.04"]
[WhiteClock "0:00:39"]
[BlackClock "0:00:36"]

1. e4 {[%clk 0:03:00]}  c5 {[%clk 0:02:59]} 2. Nf3 {[%clk 0:03:00]}  Nc6 {[%clk 0:02:58]} 3. d4 {[%clk 0:02:59]}  cxd4 {[%clk 0:02:56]} 4. Nxd4 {[%clk 0:03:00]}  Nf6 {[%clk 0:02:55]} 5. Nc3 {[%clk 0:03:00]}  e5 {[%clk 0:02:53]} 6. Ndb5 {[%clk 0:02:59]}  d6 {[%clk 0:02:52]} 7. Bg5 {[%clk 0:02:58]}  a6 {[%clk 0:02:51]} 8. Na3 {[%clk 0:02:57]}  b5 {[%clk 0:02:50]} 9. Bxf6 {[%clk 0:02:55]}  gxf6 {[%clk 0:02:49]} 10. Nd5 {[%clk 0:02:55]}  f5 {[%clk 0:02:42]} 11. c3 {[%clk 0:02:55]}  Bg7 {[%clk 0:02:38]} 12. exf5 {[%clk 0:02:54]}  Bxf5 {[%clk 0:02:35]} 13. Nc2 {[%clk 0:02:54]}  O-O {[%clk 0:02:32]} 14. Nce3 {[%clk 0:02:54]}  Be6 {[%clk 0:02:28]} 15. Bd3 {[%clk 0:02:53]}  f5 {[%clk 0:02:25]} 16. Qh5 {[%clk 0:02:53]}  e4 {[%clk 0:02:18]} 17. Bc2 {[%clk 0:02:53]}  Ne5 {[%clk 0:02:13]} 18. Nf4 {[%clk 0:02:52]}  Qf6 {[%clk 0:02:00]} 19. O-O {[%clk 0:02:13]}  Kh8 {[%clk 0:01:54]} 20. Nxe6 {[%clk 0:02:12]}  Qxe6 {[%clk 0:01:53]} 21. Rad1 {[%clk 0:02:09]}  a5 {[%clk 0:01:45]} 22. Nd5 {[%clk 0:02:08]}  Rac8 {[%clk 0:01:32]} 23. Bb3 {[%clk 0:01:54]}  a4 {[%clk 0:01:29]} 24. Nf4 {[%clk 0:01:47]}  Qh6 {[%clk 0:01:25]} 25. Qxh6 {[%clk 0:01:22]}  Bxh6 {[%clk 0:01:24]} 26. Be6 {[%clk 0:01:23]}  Rce8 {[%clk 0:01:19]} 27. Rxd6 {[%clk 0:01:19]}  Bxf4 {[%clk 0:01:16]} 28. Rb6 {[%clk 0:01:16]}  Rf6 {[%clk 0:01:12]} 29. g3 {[%clk 0:01:14]}  Bh6 {[%clk 0:01:08]} 30. Rxb5 {[%clk 0:01:12]}  Rfxe6 {[%clk 0:01:04]} 31. Rd1 {[%clk 0:01:12]}  Nf3+ {[%clk 0:01:02]} 32. Kg2 {[%clk 0:01:11]}  Nd2 {[%clk 0:00:59]} 33. Rxf5 {[%clk 0:01:10]}  Nc4 {[%clk 0:00:54]} 34. b3 {[%clk 0:01:01]}  axb3 {[%clk 0:00:53]} 35. axb3 {[%clk 0:01:02]}  e3 {[%clk 0:00:49]} 36. bxc4 {[%clk 0:00:49]}  e2 {[%clk 0:00:47]} 37. Re1 {[%clk 0:00:49]}  Bd2 {[%clk 0:00:46]} 38. Rxe2 {[%clk 0:00:49]}  Rxe2 {[%clk 0:00:46]} 39. c5 {[%clk 0:00:48]}  Bxc3 {[%clk 0:00:45]} 40. h4 {[%clk 0:00:46]}  Bd4 {[%clk 0:00:45]} 41. c6 {[%clk 0:00:46]}  Rc8 {[%clk 0:00:43]} 42. g4 {[%clk 0:00:43]}  Rxc6 {[%clk 0:00:41]} 43. Kg3 {[%clk 0:00:44]}  Rf6 {[%clk 0:00:40]} 44. Rd5 {[%clk 0:00:42]}  Bxf2+ {[%clk 0:00:39]} 45. Kh3 {[%clk 0:00:43]}  Rf3+ {[%clk 0:00:38]} 46. Kg2 {[%clk 0:00:42]}  Rg3+ {[%clk 0:00:37]} 47. Kf1 {[%clk 0:00:41]}  Ra2 {[%clk 0:00:37]} 48. h5 {[%clk 0:00:39]}  Rg1# {[%clk 0:00:36]} 0-1


[Site "https://www.chess.com"]

[Event "Titled Tuesday Blitz May 4 2021"]
[White "Sirosh, Ilja"]
[Black "De Silva, L M S T"]
[WhiteFideId "4500458"]
[BlackFideId "9953698"]
[WhiteElo "2241"]
[BlackElo "1621"]
[Result "1-0"]
[Round "07"]
[TimeControl "180+1"]
[Date "2021.05.04"]
[WhiteClock "0:00:05"]
[BlackClock "0:00:03"]

1. e4 {[%clk 0:03:00]}  e5 {[%clk 0:03:00]} 2. Nf3 {[%clk 0:03:01]}  Nc6 {[%clk 0:03:01]} 3. Bc4 {[%clk 0:03:01]}  Nf6 {[%clk 0:03:01]} 4. d3 {[%clk 0:03:01]}  Bc5 {[%clk 0:03:01]} 5. c3 {[%clk 0:03:01]}  O-O {[%clk 0:03:02]} 6. O-O {[%clk 0:03:02]}  d5 {[%clk 0:03:02]} 7. exd5 {[%clk 0:03:02]}  Nxd5 {[%clk 0:03:03]} 8. Re1 {[%clk 0:03:01]}  Bg4 {[%clk 0:03:04]} 9. Nbd2 {[%clk 0:03:01]}  Nb6 {[%clk 0:03:04]} 10. h3 {[%clk 0:03:01]}  Bh5 {[%clk 0:03:04]} 11. Bb3 {[%clk 0:03:01]}  Qxd3 {[%clk 0:03:03]} 12. Nxe5 {[%clk 0:03:01]}  Qf5 {[%clk 0:03:03]} 13. Nef3 {[%clk 0:02:56]}  Rad8 {[%clk 0:03:04]} 14. Qe2 {[%clk 0:02:38]}  Bg6 {[%clk 0:02:32]} 15. Nh4 {[%clk 0:02:11]}  Qf6 {[%clk 0:02:25]} 16. Nxg6 {[%clk 0:02:08]}  Qxg6 {[%clk 0:02:26]} 17. Nf3 {[%clk 0:02:03]}  Bd6 {[%clk 0:02:15]} 18. Bc2 {[%clk 0:02:03]}  Qh5 {[%clk 0:02:05]} 19. Ng5 {[%clk 0:01:24]}  Qxe2 {[%clk 0:02:02]} 20. Rxe2 {[%clk 0:01:25]}  h6 {[%clk 0:01:59]} 21. Nf3 {[%clk 0:01:25]}  Rfe8 {[%clk 0:01:55]} 22. Rxe8+ {[%clk 0:01:23]}  Rxe8 {[%clk 0:01:56]} 23. b3 {[%clk 0:01:23]}  Nd5 {[%clk 0:01:54]} 24. Bd2 {[%clk 0:01:22]}  Ne5 {[%clk 0:01:34]} 25. Nxe5 {[%clk 0:01:17]}  Bxe5 {[%clk 0:01:35]} 26. Re1 {[%clk 0:01:17]}  Kf8 {[%clk 0:01:32]} 27. c4 {[%clk 0:01:08]}  Nf6 {[%clk 0:01:31]} 28. Bb4+ {[%clk 0:00:49]}  Kg8 {[%clk 0:01:31]} 29. Kf1 {[%clk 0:00:43]}  b6 {[%clk 0:01:27]} 30. g3 {[%clk 0:00:40]}  c5 {[%clk 0:01:27]} 31. Bd2 {[%clk 0:00:40]}  Rd8 {[%clk 0:01:14]} 32. Bc1 {[%clk 0:00:40]}  Bd6 {[%clk 0:01:10]} 33. Rd1 {[%clk 0:00:39]}  Kf8 {[%clk 0:01:04]} 34. f4 {[%clk 0:00:39]}  Ke7 {[%clk 0:01:01]} 35. Kf2 {[%clk 0:00:39]}  Kd7 {[%clk 0:01:02]} 36. Kf3 {[%clk 0:00:38]}  Kc7 {[%clk 0:01:02]} 37. g4 {[%clk 0:00:38]}  Re8 {[%clk 0:00:57]} 38. Bd2 {[%clk 0:00:34]}  Nd7 {[%clk 0:00:54]} 39. Re1 {[%clk 0:00:33]}  Rd8 {[%clk 0:00:54]} 40. Bc3 {[%clk 0:00:33]}  f6 {[%clk 0:00:54]} 41. h4 {[%clk 0:00:30]}  Nb8 {[%clk 0:00:54]} 42. Be4 {[%clk 0:00:26]}  a6 {[%clk 0:00:52]} 43. g5 {[%clk 0:00:26]}  hxg5 {[%clk 0:00:52]} 44. hxg5 {[%clk 0:00:25]}  fxg5 {[%clk 0:00:52]} 45. fxg5 {[%clk 0:00:26]}  Rf8+ {[%clk 0:00:53]} 46. Kg4 {[%clk 0:00:24]}  Rf4+ {[%clk 0:00:35]} 47. Kh5 {[%clk 0:00:24]}  Nd7 {[%clk 0:00:33]} 48. Bxg7 {[%clk 0:00:21]}  Rf2 {[%clk 0:00:30]} 49. Kg6 {[%clk 0:00:17]}  Rxa2 {[%clk 0:00:28]} 50. Bd5 {[%clk 0:00:17]}  Rf2 {[%clk 0:00:24]} 51. Bc3 {[%clk 0:00:14]}  b5 {[%clk 0:00:23]} 52. Kg7 {[%clk 0:00:11]}  b4 {[%clk 0:00:23]} 53. Ba1 {[%clk 0:00:09]}  a5 {[%clk 0:00:23]} 54. g6 {[%clk 0:00:10]}  Bf8+ {[%clk 0:00:21]} 55. Kg8 {[%clk 0:00:09]}  Bd6 {[%clk 0:00:21]} 56. g7 {[%clk 0:00:09]}  a4 {[%clk 0:00:19]} 57. bxa4 {[%clk 0:00:08]}  b3 {[%clk 0:00:20]} 58. Kh7 {[%clk 0:00:07]}  Rh2+ {[%clk 0:00:15]} 59. Kg6 {[%clk 0:00:08]}  Ne5+ {[%clk 0:00:03]} 60. Bxe5 {[%clk 0:00:07]}  Bxe5 {[%clk 0:00:04]} 61. Rxe5 {[%clk 0:00:06]}  b2 {[%clk 0:00:04]} 62. Re1 {[%clk 0:00:06]}  Re2 {[%clk 0:00:04]} 63. Rb1 {[%clk 0:00:05]}  Re8 {[%clk 0:00:02]} 64. g8=Q {[%clk 0:00:06]}  Kd6 {[%clk 0:00:03]} 65. Qxe8 {[%clk 0:00:05]} 1-0


[Site "https://www.chess.com"]

[Event "Titled Tuesday Blitz May 4 2021"]
[White "Song, Michael"]
[Black "Alboredo, Julia"]
[WhiteFideId "2613190"]
[BlackFideId "2124807"]
[WhiteElo "2274"]
[BlackElo "2041"]
[Result "1-0"]
[Round "07"]
[TimeControl "180+1"]
[Date "2021.05.04"]
[WhiteClock "0:00:06"]
[BlackClock "0:00:13"]

1. d4 {[%clk 0:03:00]}  Nf6 {[%clk 0:02:59]} 2. Bg5 {[%clk 0:03:01]}  d5 {[%clk 0:02:58]} 3. Nd2 {[%clk 0:03:00]}  g6 {[%clk 0:02:57]} 4. Bxf6 {[%clk 0:02:56]}  exf6 {[%clk 0:02:58]} 5. e3 {[%clk 0:02:55]}  Bg7 {[%clk 0:02:58]} 6. h4 {[%clk 0:02:56]}  h5 {[%clk 0:02:55]} 7. Bd3 {[%clk 0:02:56]}  f5 {[%clk 0:02:55]} 8. Ne2 {[%clk 0:02:55]}  c5 {[%clk 0:02:51]} 9. c3 {[%clk 0:02:55]}  Nc6 {[%clk 0:02:50]} 10. Nf4 {[%clk 0:02:52]}  Be6 {[%clk 0:02:40]} 11. Nxe6 {[%clk 0:02:44]}  fxe6 {[%clk 0:02:39]} 12. Nf3 {[%clk 0:02:45]}  cxd4 {[%clk 0:02:33]} 13. exd4 {[%clk 0:02:44]}  Qb6 {[%clk 0:02:30]} 14. Qe2 {[%clk 0:02:42]}  Kd7 {[%clk 0:02:22]} 15. O-O-O {[%clk 0:02:32]}  Rae8 {[%clk 0:02:20]} 16. Kb1 {[%clk 0:02:28]}  Kc8 {[%clk 0:02:19]} 17. Bb5 {[%clk 0:02:26]}  a6 {[%clk 0:02:15]} 18. Ba4 {[%clk 0:02:25]}  Re7 {[%clk 0:02:06]} 19. Rhe1 {[%clk 0:02:19]}  Rhe8 {[%clk 0:02:04]} 20. c4 {[%clk 0:02:12]}  Kb8 {[%clk 0:01:48]} 21. Rd2 {[%clk 0:01:55]}  Ka8 {[%clk 0:01:38]} 22. Qd3 {[%clk 0:01:45]}  dxc4 {[%clk 0:01:33]} 23. Qxc4 {[%clk 0:01:45]}  Na5 {[%clk 0:01:28]} 24. Qc5 {[%clk 0:01:20]}  Qxc5 {[%clk 0:01:25]} 25. dxc5 {[%clk 0:01:21]}  Rc8 {[%clk 0:01:25]} 26. b4 {[%clk 0:01:15]}  Nc4 {[%clk 0:01:17]} 27. Rd7 {[%clk 0:01:14]}  Rce8 {[%clk 0:00:50]} 28. Kc2 {[%clk 0:00:44]}  e5 {[%clk 0:00:44]} 29. Red1 {[%clk 0:00:18]}  e4 {[%clk 0:00:36]} 30. Rd8+ {[%clk 0:00:17]}  Rxd8 {[%clk 0:00:34]} 31. Rxd8+ {[%clk 0:00:18]}  Ka7 {[%clk 0:00:35]} 32. Nd4 {[%clk 0:00:18]}  e3 {[%clk 0:00:28]} 33. fxe3 {[%clk 0:00:18]}  Nxe3+ {[%clk 0:00:28]} 34. Kd3 {[%clk 0:00:19]}  Bxd4 {[%clk 0:00:28]} 35. Kxd4 {[%clk 0:00:14]}  Nxg2 {[%clk 0:00:26]} 36. c6 {[%clk 0:00:14]}  bxc6 {[%clk 0:00:25]} 37. Bxc6 {[%clk 0:00:14]}  Nxh4 {[%clk 0:00:20]} 38. Kc5 {[%clk 0:00:13]}  Re5+ {[%clk 0:00:19]} 39. Bd5 {[%clk 0:00:13]}  Rxd5+ {[%clk 0:00:17]} 40. Rxd5 {[%clk 0:00:13]}  Nf3 {[%clk 0:00:16]} 41. Rd7+ {[%clk 0:00:13]}  Kb8 {[%clk 0:00:17]} 42. Kb6 {[%clk 0:00:11]}  Kc8 {[%clk 0:00:17]} 43. Rg7 {[%clk 0:00:11]}  Ne5 {[%clk 0:00:16]} 44. Kxa6 {[%clk 0:00:11]}  h4 {[%clk 0:00:16]} 45. b5 {[%clk 0:00:11]}  h3 {[%clk 0:00:15]} 46. b6 {[%clk 0:00:11]}  Nc6 {[%clk 0:00:15]} 47. b7+ {[%clk 0:00:07]}  Kd8 {[%clk 0:00:14]} 48. Kb6 {[%clk 0:00:05]}  Nb8 {[%clk 0:00:13]} 49. Rg8+ {[%clk 0:00:04]}  Kd7 {[%clk 0:00:12]} 50. Rxb8 {[%clk 0:00:05]}  h2 {[%clk 0:00:13]} 51. Rh8 {[%clk 0:00:06]} 1-0


[Site "https://www.chess.com"]

[Event "Titled Tuesday Blitz May 4 2021"]
[White "Spata, German"]
[Black "Kalajzic, Ivan"]
[WhiteFideId "113026"]
[BlackFideId "14506378"]
[WhiteElo "2238"]
[BlackElo "2163"]
[Result "1-0"]
[Round "07"]
[TimeControl "180+1"]
[Date "2021.05.04"]
[WhiteClock "0:00:57"]
[BlackClock "0:00:16"]

1. e4 {[%clk 0:03:00]}  c6 {[%clk 0:02:58]} 2. d4 {[%clk 0:03:00]}  d5 {[%clk 0:02:58]} 3. exd5 {[%clk 0:03:01]}  cxd5 {[%clk 0:02:58]} 4. Bd3 {[%clk 0:03:01]}  Nf6 {[%clk 0:02:58]} 5. c3 {[%clk 0:03:01]}  g6 {[%clk 0:02:59]} 6. Bf4 {[%clk 0:02:59]}  Bg7 {[%clk 0:02:59]} 7. Nd2 {[%clk 0:02:58]}  Nc6 {[%clk 0:02:59]} 8. Ngf3 {[%clk 0:02:57]}  O-O {[%clk 0:02:58]} 9. O-O {[%clk 0:02:55]}  Bf5 {[%clk 0:02:58]} 10. Bxf5 {[%clk 0:02:55]}  gxf5 {[%clk 0:02:58]} 11. Ne5 {[%clk 0:02:56]}  Ne4 {[%clk 0:02:56]} 12. Nxc6 {[%clk 0:02:52]}  bxc6 {[%clk 0:02:55]} 13. f3 {[%clk 0:02:53]}  Nxd2 {[%clk 0:02:44]} 14. Qxd2 {[%clk 0:02:52]}  e6 {[%clk 0:02:42]} 15. Bh6 {[%clk 0:02:47]}  a5 {[%clk 0:02:25]} 16. Bxg7 {[%clk 0:02:38]}  Kxg7 {[%clk 0:02:25]} 17. b3 {[%clk 0:02:22]}  Qf6 {[%clk 0:02:02]} 18. Rac1 {[%clk 0:02:20]}  Rfb8 {[%clk 0:01:30]} 19. Rfe1 {[%clk 0:02:14]}  Qh6 {[%clk 0:01:22]} 20. Qf2 {[%clk 0:02:07]}  Kh8 {[%clk 0:01:04]} 21. Rc2 {[%clk 0:02:05]}  Qf4 {[%clk 0:01:00]} 22. g3 {[%clk 0:01:56]}  Rg8 {[%clk 0:00:59]} 23. Kh1 {[%clk 0:01:54]}  Qh6 {[%clk 0:00:53]} 24. Qe3 {[%clk 0:01:43]}  Qxe3 {[%clk 0:00:48]} 25. Rxe3 {[%clk 0:01:43]}  h5 {[%clk 0:00:47]} 26. c4 {[%clk 0:01:35]}  Rgb8 {[%clk 0:00:39]} 27. g4 {[%clk 0:01:20]}  hxg4 {[%clk 0:00:34]} 28. fxg4 {[%clk 0:01:21]}  fxg4 {[%clk 0:00:33]} 29. Rf2 {[%clk 0:01:02]}  Rf8 {[%clk 0:00:32]} 30. Rf4 {[%clk 0:01:02]}  dxc4 {[%clk 0:00:16]} 31. Rxg4 {[%clk 0:00:57]} 1-0


[Site "https://www.chess.com"]